bitfinex/quotes_SOLUSD_20250929
["timestamp","ask_amount","ask_price","bid_price","bid_amount"]
[1759134150496,2.20553418,208.93,208.92,42.35652115]
[1759134151073,2.20553418,208.93,208.92,5.43652115]
[1759134151281,2.20553418,208.93,208.92,42.35652115]
[1759134152487,2.20553418,208.93,208.92,37.57]
[1759134152686,2.20553418,208.93,208.92,42.35652115]
[1759134152987,2.20553418,208.93,208.92,5.43652115]
[1759134153185,2.20553418,208.93,208.92,42.35652115]
[1759134153682,2.20553418,208.95,208.92,54.32282404]
[1759134153866,2.20553418,208.95,208.93,0.65]
[1759134154068,2.20553418,208.95,208.94,36.92]
[1759134154269,2.20553418,208.95,208.94,37.57]
[1759134154591,2.20553418,208.97,208.94,54.32122044]
[1759134154880,2.20553418,208.97,208.95,0.65]
[1759134155080,2.20553418,208.97,208.96,36.92]
[1759134155280,2.20553418,208.97,208.96,0.65]
[1759134155477,2.20553418,208.97,208.96,37.57]
[1759134156794,2.20553418,208.97,208.96,42.3556049]
[1759134157082,2.20553418,209.01,208.96,54.31961715]
[1759134157281,2.20553418,209.01,208.97,0.65]
[1759134157668,2.20553418,209.01,208.98,36.92]
[1759134157868,2.20553418,209.01,208.99,0.65]
[1759134158082,2.20553418,209.01,209.0,36.92]
[1759134158284,2.20553418,209.01,208.97,0.65]
[1759134158888,2.20553418,209.01,208.99,4.78491793]
[1759134159477,2.20553418,209.01,208.99,5.43491793]
[1759134159785,2.20553418,209.01,209.0,36.9]
[1759134160192,2.20553418,209.01,208.99,4.78491793]
[1759134160389,2.20553418,209.01,209.0,36.9]
[1759134160984,2.20553418,209.01,208.98,5.43513291]
[1759134161188,2.20553418,209.01,209.0,36.9]
[1759134161691,2.20553418,209.01,208.98,5.43513291]
[1759134161998,2.20553418,209.01,209.0,36.9]
[1759134162191,2.20553418,209.01,208.99,4.78488973]
[1759134162494,2.20553418,209.01,209.0,36.9]
[1759134163086,2.20553418,209.01,209.0,0.65]
[1759134163292,2.20553418,209.03,209.0,37.55]
[1759134163483,2.20553418,209.03,209.01,37.55]
[1759134163677,2.20553418,209.03,209.02,0.65]
[1759134164880,2.20553418,209.03,209.01,41.68432637]
[1759134165086,2.20553418,209.03,209.02,36.9]
[1759134165474,2.20553418,209.03,209.0,5.43468042]
[1759134165684,2.20553418,209.01,209.0,4.78468042]
[1759134165886,2.20553418,209.01,209.0,41.68468042]
[1759134166088,2.20553418,209.01,209.0,42.33468042]
[1759134166596,2.20553418,209.01,209.0,5.43468042]
[1759134166804,2.20553418,209.03,209.0,5.43468042]
[1759134166981,2.20553418,209.03,209.01,37.55]
[1759134167387,2.20553418,209.03,209.01,0.65]
[1759134167584,2.20553418,209.03,209.02,36.9]
[1759134169189,2.20553418,209.03,209.01,5.4343818]
[1759134169390,2.20553418,209.03,209.02,36.9]
[1759134170006,2.20553418,209.03,209.0,4.78466744]
[1759134170313,2.20553418,209.03,209.01,36.9]
[1759134170682,2.20553418,209.03,209.01,0.65]
[1759134170891,2.20553418,209.03,209.02,36.9]
[1759134174205,2.20553418,209.03,209.01,5.44439853]
[1759134174605,2.20553418,209.03,209.02,36.9]
[1759134175095,2.20553418,209.03,209.01,5.44439853]
[1759134175301,2.20553418,209.03,209.02,36.9]
[1759134175502,2.20553418,209.03,209.01,5.44439853]
[1759134175701,2.20553418,209.03,209.02,36.9]
[1759134175997,2.20553418,209.03,209.01,5.44439853]
[1759134176580,2.20553418,209.03,209.02,36.9]
[1759134177006,2.20553418,209.03,208.93,103.23086743]
[1759134177007,2.20553418,209.03,208.98,4.7851469]
[1759134177306,2.20553418,209.03,208.99,37.56]
[1759134177510,2.20553418,209.03,209.0,0.66]
[1759134177711,2.20553418,209.03,209.01,0.66]
[1759134178009,2.20553418,209.03,209.02,36.9]
[1759134180402,28.20553418,209.03,209.02,36.9]
[1759134180906,2.85553418,209.03,208.99,4.7848888]
[1759134181213,30.98379974,209.04,208.99,4.7848888]
[1759134181214,2.20553418,209.01,209.0,0.66]
[1759134181425,2.20553418,209.01,209.0,36.9]
[1759134181588,28.85553418,209.01,208.96,0.66]
[1759134181786,2.20553418,208.98,208.97,36.9]
[1759134182185,2.20553418,208.98,208.97,37.56]
[1759134183308,2.20553418,208.98,208.97,42.34537589]
[1759134184808,2.20553418,209.0,208.97,5.44537589]
[1759134185022,2.20553418,209.0,208.98,0.66]
[1759134185212,2.20553418,209.0,208.98,37.56]
[1759134185397,2.20553418,209.0,208.98,42.34504837]
[1759134185600,26.0,209.02,208.98,41.68504837]
[1759134185919,2.20553418,209.0,208.98,42.34504837]
[1759134186126,26.0,209.01,208.99,0.66]
[1759134186411,27.40929302,209.03,209.0,36.9]
[1759134186613,27.40929302,209.03,209.01,37.56]
[1759134186805,27.40929302,209.03,209.02,0.66]
[1759134188620,1.40929302,209.03,209.02,0.66]
[1759134189319,1.40929302,209.03,209.02,37.56]
[1759134189815,1.40929302,209.03,209.02,36.9]
[1759134190015,1.40929302,209.03,209.0,0.66]
[1759134190197,1.40929302,209.03,209.01,36.9]
[1759134191009,0.65,209.02,208.98,36.9]
[1759134191325,44.15330137,209.03,208.93,4.78629205]
[1759134191326,1.40929302,208.99,208.93,16.75202219]
[1759134191494,1.40929302,208.99,208.96,0.66]
[1759134191695,1.40929302,208.99,208.97,0.66]
[1759134191948,1.40929302,209.0,208.97,5.44527695]
[1759134192094,1.40929302,209.0,208.97,42.34527695]
[1759134192715,1.40929302,209.0,208.98,36.9]
[1759134194503,4.13180309,209.04,208.99,0.71]
[1759134194821,0.2,209.04,209.0,36.9]
[1759134195021,27.60929302,209.04,209.01,0.71]
[1759134195195,27.60929302,209.04,208.97,16.74871667]
[1759134195196,27.60929302,209.04,209.02,0.71]
[1759134195396,27.60929302,209.04,209.02,37.61]
[1759134195615,27.60929302,209.04,209.02,0.71]
[1759134195817,1.60929302,209.04,209.03,5.49400229]
[1759134196016,0.2,209.04,209.03,42.39400229]
[1759134198615,0.2,209.04,209.03,5.49400229]
[1759134199021,0.2,209.04,209.03,42.39400229]
[1759134200331,0.2,209.04,209.03,5.49400229]
[1759134200509,0.2,209.04,209.03,42.37400229]
[1759134202109,0.2,209.04,209.03,5.49400229]
[1759134202312,0.2,209.04,209.03,42.37400229]
[1759134202932,0.2,209.04,209.03,5.49400229]
[1759134203224,0.2,209.04,209.03,42.37400229]
[1759134204630,0.2,209.04,209.03,5.49400229]
[1759134204819,0.2,209.04,209.03,42.37400229]
[1759134205413,0.2,209.04,209.03,5.49400229]
[1759134205620,0.2,209.04,209.03,42.37400229]
[1759134207838,0.2,209.04,209.03,5.49400229]
[1759134208309,0.2,209.04,209.03,42.37400229]
[1759134210140,0.2,209.04,209.03,4.78400229]
[1759134210343,0.2,209.04,209.0,91.951389]
[1759134210636,0.2,209.04,209.01,41.66446007]
[1759134210935,0.2,209.04,209.01,5.47446007]
[1759134211116,0.2,209.04,209.02,36.88]
[1759134212116,0.2,209.04,209.01,4.78446007]
[1759134212318,0.2,209.04,209.02,36.88]
[1759134213236,0.69,209.03,208.98,0.69]
[1759134213418,0.69,209.03,208.99,36.88]
[1759134213830,0.69,209.02,208.99,41.66489203]
[1759134214028,0.69,209.02,209.0,36.88]
[1759134214432,0.69,209.02,208.99,4.78489203]
[1759134214636,0.69,209.02,209.0,36.88]
[1759134214841,1.60929302,209.04,209.0,36.88]
[1759134215133,0.69,209.03,209.0,36.88]
[1759134217333,1.60929302,209.04,209.0,42.35465816]
[1759134217730,2.29929302,209.04,209.0,42.35465816]
[1759134219044,2.29929302,209.04,209.01,36.88]
[1759134219346,2.29929302,209.04,208.97,11.96294284]
[1759134219347,6.39307278,209.04,208.98,0.69]
[1759134219573,0.69,209.03,208.98,5.47503399]
[1759134219861,2.09929302,209.02,208.99,36.88]
[1759134220237,1.40929302,209.02,208.99,36.88]
[1759134220751,1.40929302,209.02,208.98,5.47503399]
[1759134220951,1.40929302,209.02,208.99,36.88]
[1759134221977,6.88354803,209.02,208.99,36.88]
[1759134222650,6.88354803,209.02,208.97,5.47533328]
[1759134222853,6.19354803,209.02,208.98,36.88]
[1759134223056,6.88354803,209.02,208.98,36.88]
[1759134223260,6.88354803,209.02,208.98,37.57]
[1759134223844,6.88354803,209.02,208.99,36.88]
[1759134224043,26.0,209.01,208.99,36.88]
[1759134224244,26.0,209.01,208.98,0.69]
[1759134224450,26.0,209.01,209.0,36.88]
[1759134224643,32.88358708,209.02,208.98,0.69]
[1759134224849,32.88358708,209.02,208.99,36.88]
[1759134225055,27.40929302,209.02,208.99,36.88]
[1759134225250,26.0,209.01,208.99,36.88]
[1759134225558,26.0,209.01,208.98,0.69]
[1759134225738,32.19353897,209.02,208.99,36.88]
[1759134227960,32.19353897,209.02,208.98,0.69]
[1759134228365,27.40929302,209.02,208.99,0.69]
[1759134230769,32.88353837,209.02,208.98,41.66510038]
[1759134230964,31.47424535,209.02,208.98,37.56]
[1759134231265,32.19353837,209.02,208.98,36.88]
[1759134231458,32.19353837,209.02,208.98,37.56]
[1759134232667,32.90353837,209.02,208.98,37.56]
[1759134232863,32.19353837,209.02,208.98,36.88]
[1759134233069,0.71,209.01,208.98,36.88]
[1759134234644,32.19353837,209.02,208.98,37.56]
[1759134234945,32.19353837,209.02,208.98,36.88]
[1759134235155,32.19353837,209.02,208.98,37.56]
[1759134235461,32.19353837,209.02,208.99,0.68]
[1759134235768,32.90353837,209.02,208.98,36.88]
[1759134235967,32.19353837,209.02,208.98,37.56]
[1759134236197,1.40929302,209.0,208.98,36.88]
[1759134236470,2.11929302,209.0,208.98,36.88]
[1759134236656,1.40929302,209.0,208.98,36.88]
[1759134237059,26.0,208.99,208.98,36.88]
[1759134238070,32.19402421,209.0,208.98,36.88]
[1759134238658,26.0,208.98,208.97,37.56]
[1759134239164,6.19402421,209.0,208.97,37.56]
[1759134239473,6.19402421,209.0,208.96,4.78559393]
[1759134239474,27.40929302,209.01,208.98,0.68]
[1759134239973,1.40929302,209.01,208.98,0.68]
[1759134240177,6.19377166,209.01,208.98,0.68]
[1759134240853,0.2,209.04,208.98,42.34514602]
[1759134241077,0.2,209.04,208.99,0.68]
[1759134241367,0.2,209.04,208.99,15.06883426]
[1759134241573,0.2,209.04,209.0,37.56]
[1759134241954,0.2,209.04,209.01,37.56]
[1759134242258,1.60929302,209.04,209.01,0.68]
[1759134242450,0.2,209.04,209.01,5.46438479]
[1759134242646,0.2,209.04,209.02,37.56]
[1759134243060,0.2,209.04,209.03,0.68]
[1759134243468,0.2,209.04,209.03,37.56]
[1759134244174,0.2,209.04,209.03,42.34400229]
[1759134245172,0.2,209.04,209.03,37.56]
[1759134245488,0.2,209.04,209.03,5.46400229]
[1759134245781,0.2,209.04,209.03,42.34400229]
[1759134246761,0.2,209.04,209.03,5.46400229]
[1759134246977,0.2,209.04,209.03,42.34400229]
[1759134247564,0.2,209.04,209.03,5.46400229]
[1759134247871,0.2,209.04,209.03,42.34400229]
[1759134248578,0.2,209.04,209.0,11.96151564]
[1759134248579,0.2,209.04,209.01,5.46426501]
[1759134248782,2.40057706,209.04,209.02,36.86]
[1759134249080,2.40057706,209.04,209.03,36.86]
[1759134249579,28.40057706,209.04,209.03,36.86]
[1759134249979,26.0,209.03,209.0,4.78466897]
[1759134250169,26.0,209.03,209.01,36.86]
[1759134250772,26.0,209.03,209.01,37.54]
[1759134251181,26.0,209.03,209.01,36.86]
[1759134251896,26.71,209.03,209.01,36.86]
[1759134252177,2.20057706,209.02,208.98,19.17449309]
[1759134252376,2.91057706,209.02,208.99,36.86]
[1759134253360,2.20057706,209.0,208.99,36.86]
[1759134254363,2.20057706,209.0,208.96,0.71]
[1759134254683,2.20057706,209.0,208.97,36.86]
[1759134254883,2.20057706,208.98,208.97,36.86]
[1759134255876,2.20057706,209.0,208.97,0.71]
[1759134256179,2.20057706,209.0,208.96,4.78550029]
[1759134256180,2.20057706,209.0,208.98,37.57]
[1759134256361,2.20057706,209.0,208.98,36.86]
[1759134256562,2.20057706,209.0,208.98,0.71]
[1759134256780,2.20057706,209.0,208.99,36.86]
[1759134257778,31.46411502,209.03,208.99,36.86]
[1759134257979,2.20057706,209.0,208.98,4.78503009]
[1759134258176,2.20057706,209.0,208.98,5.49503009]
[1759134258484,2.20057706,209.0,208.99,36.86]
[1759134259669,2.20057706,209.0,208.99,42.35491793]
[1759134260066,0.2,209.04,208.99,42.35491793]
[1759134260284,0.2,209.04,209.0,0.71]
[1759134260661,0.2,209.04,209.01,41.64446007]
[1759134260866,0.2,209.04,209.02,37.57]
[1759134261279,0.2,209.04,209.03,0.67]
[1759134261698,0.2,209.04,209.03,15.05607428]
[1759134261996,0.2,209.04,209.03,19.84007657]
[1759134265069,0.2,209.04,209.03,56.70007657]
[1759134265266,1e-08,209.04,209.03,56.70007657]
[1759134265704,1e-08,209.04,209.03,19.84007657]
[1759134265981,1e-08,209.04,209.03,56.70007657]
[1759134266193,1e-08,209.04,209.03,19.84007657]
[1759134266489,1e-08,209.04,209.03,56.70007657]
[1759134272098,1e-08,209.04,209.03,19.84007657]
[1759134272296,1e-08,209.04,209.03,56.70007657]
[1759134275298,1e-08,209.04,209.03,136.00007657]
[1759134276587,1e-08,209.04,209.03,99.14007657]
[1759134276786,1e-08,209.04,209.03,136.00007657]
[1759134284208,1e-08,209.04,209.03,99.14007657]
[1759134284506,1e-08,209.04,209.03,136.00007657]
[1759134285198,1e-08,209.04,209.03,121.61400229]
[1759134286408,1e-08,209.04,209.03,121.59400229]
[1759134287217,1e-08,209.04,209.03,123.51177767]
[1759134292310,1e-08,209.06,209.04,13.59559401]
[1759134292496,1e-08,209.06,209.05,36.84]
[1759134292702,1e-08,209.06,209.05,37.49]
[1759134293217,1e-08,209.06,209.05,0.65]
[1759134293422,1e-08,209.06,209.05,37.49]
[1759134294329,1e-08,209.06,209.05,121.5735446]
[1759134295933,1e-08,209.06,209.05,84.7335446]
[1759134296604,1e-08,209.06,209.05,121.5735446]
[1759134301533,1e-08,209.06,209.05,84.7335446]
[1759134301831,1e-08,209.06,209.05,121.5735446]
[1759134302128,1e-08,209.06,209.05,84.7335446]
[1759134302337,1e-08,209.06,209.05,121.5735446]
[1759134308531,1e-08,209.06,209.05,120.9235446]
[1759134309041,1e-08,209.06,209.05,121.5735446]
[1759134313016,1e-08,209.06,209.05,120.9235446]
[1759134313434,1e-08,209.06,209.05,121.6135446]
[1759134314038,0.66000001,209.06,209.05,84.0835446]
[1759134314227,0.66000001,209.06,209.05,120.9235446]
[1759134314740,1e-08,209.06,209.05,120.9235446]
[1759134315441,1e-08,209.06,209.05,121.6135446]
[1759134315625,1e-08,209.06,209.05,123.02136221]
[1759134316350,1e-08,209.06,209.05,151.00695622]
[1759134316533,0.2,209.13,209.09,39.59559401]
[1759134316737,0.2,209.13,209.1,38.22781761]
[1759134317035,1e-08,209.13,209.12,1.40781761]
[1759134317365,1e-08,209.13,209.12,77.82341162]
[1759134317567,1e-08,209.13,209.12,92.90341162]
[1759134318062,1e-08,209.18,209.12,122.07326623]
[1759134318256,1e-08,209.18,209.15,1.40781761]
[1759134318442,1e-08,209.18,209.16,36.82]
[1759134319261,1e-08,209.18,209.17,4.7808003]
[1759134320555,1e-08,209.18,209.17,41.6008003]
[1759134323546,1e-08,209.18,209.17,55.91872876]
[1759134328558,1e-08,209.18,209.17,56.56872876]
[1759134328745,1e-08,209.18,209.17,19.09872876]
[1759134328947,1e-08,209.18,209.17,55.91872876]
[1759134329944,1e-08,209.18,209.17,70.30872876]
[1759134330270,1e-08,209.18,209.17,55.91872876]
[1759134331766,1e-08,209.18,209.17,85.0324028]
[1759134332072,1e-08,209.18,209.17,86.94843279]
[1759134332370,1e-08,209.18,209.17,88.3362504]
[1759134332869,1e-08,209.18,209.17,92.15574308]
[1759134333264,1e-08,209.24,209.21,13.59559401]
[1759134333472,1e-08,209.24,209.23,1.40781761]
[1759134334266,1e-08,209.24,209.23,6.18724694]
[1759134334594,1e-08,209.24,209.23,20.43284095]
[1759134334769,1e-08,209.25,209.23,20.43284095]
[1759134334965,1e-08,209.25,209.24,36.8]
[1759134335372,1e-08,209.25,209.24,50.39559401]
[1759134335561,1e-08,209.25,209.24,51.04559401]
[1759134335766,1e-08,209.25,209.24,50.39559401]
[1759134336067,1e-08,209.25,209.24,52.3113487]
[1759134336267,1e-08,209.25,209.24,6.6949556]
[1759134336477,1e-08,209.25,209.24,41.57920091]
[1759134337286,1e-08,209.25,209.24,4.77920091]
[1759134337451,1e-08,209.25,209.24,41.57920091]
[1759134339072,1e-08,209.25,209.24,36.8]
[1759134340776,0.72000001,209.25,209.23,4.77942933]
[1759134341080,0.72,209.24,209.21,11.94945769]
[1759134341287,0.72,209.24,209.22,36.8]
[1759134341454,1e-08,209.25,209.22,36.8]
[1759134342055,0.2,209.29,209.24,13.59559401]
[1759134342358,1e-08,209.29,209.28,27.40781761]
[1759134342567,1e-08,209.29,209.28,77.80341162]
[1759134342772,1e-08,209.29,209.28,78.45341162]
[1759134343183,1e-08,209.29,209.28,83.23169908]
[1759134343379,1e-08,209.29,209.28,81.82388147]
[1759134343676,1e-08,209.29,209.28,83.23169908]
[1759134345277,1e-08,209.33,209.29,13.59559401]
[1759134345571,1e-08,209.33,209.31,1.40781761]
[1759134345768,1e-08,209.33,209.32,36.8]
[1759134346982,1e-08,209.33,209.32,41.57737435]
[1759134347484,1e-08,209.33,209.32,42.22737435]
[1759134347869,1e-08,209.33,209.32,5.42737435]
[1759134348067,1e-08,209.33,209.32,41.57737435]
[1759134348271,1e-08,209.33,209.32,55.17296836]
[1759134348458,1e-08,209.33,209.32,81.82296836]
[1759134348781,1e-08,209.33,209.32,96.21296836]
[1759134348983,0.2,209.4,209.32,96.21296836]
[1759134348984,0.2,209.4,209.36,1.40781761]
[1759134349184,0.2,209.4,209.37,37.45]
[1759134349683,0.2,209.4,209.38,36.82]
[1759134350468,0.2,209.4,209.35,1.91474594]
[1759134350670,0.92,209.4,209.36,36.82]
[1759134350882,0.92,209.4,209.37,4.77623346]
[1759134351087,0.2,209.4,209.38,36.82]
[1759134351268,0.2,209.4,209.37,16.71681711]
[1759134351469,0.68,209.39,209.38,36.82]
[1759134351785,0.2,209.4,209.38,36.82]
[1759134352290,0.2,209.4,209.37,16.71681711]
[1759134352596,0.2,209.4,209.38,36.88]
[1759134353061,0.2,209.4,209.39,4.77577725]
[1759134353988,0.2,209.4,209.39,41.65577725]
[1759134354492,0.88,209.4,209.39,41.65577725]
[1759134355770,0.88,209.4,209.34,11.94180644]
[1759134356086,0.68,209.39,209.35,36.88]
[1759134356264,0.68,209.39,209.35,53.59841413]
[1759134356465,0.2,209.4,209.35,53.59841413]
[1759134356764,0.2,209.4,209.36,36.88]
[1759134357578,0.88,209.4,209.36,36.88]
[1759134358087,0.88,209.4,209.37,4.77623346]
[1759134358287,0.88,209.4,209.38,36.86]
[1759134358787,0.68,209.39,209.33,4.77714613]
[1759134358977,1.40781761,209.35,209.34,36.86]
[1759134359901,2.08781761,209.35,209.34,36.86]
[1759134360268,1.40781761,209.36,209.34,36.86]
[1759134360695,1.40781761,209.36,209.33,4.77705099]
[1759134360996,1.40781761,209.36,209.34,36.86]
[1759134361386,2.08781761,209.36,209.34,36.86]
[1759134361688,0.68,209.35,209.24,78.99341162]
[1759134361886,1.40781761,209.34,209.25,36.86]
[1759134362100,1.40781761,209.34,209.26,36.86]
[1759134362390,1.40781761,209.34,209.27,16.72480527]
[1759134362691,1.40781761,209.34,209.28,36.86]
[1759134364873,1.40781761,209.34,209.27,16.72480527]
[1759134365069,27.40781761,209.34,209.29,4.77805915]
[1759134365275,26.0,209.34,209.3,36.86]
[1759134365589,27.40781761,209.34,209.3,36.86]
[1759134365790,1.40781761,209.34,209.3,36.86]
[1759134366578,1.40781761,209.32,209.29,4.77805915]
[1759134366796,1.40781761,209.32,209.3,36.86]
[1759134367098,1.40781761,209.32,209.31,4.77760259]
[1759134367588,1.40781761,209.33,209.31,4.77760259]
[1759134368582,26.0,209.34,209.31,5.44760259]
[1759134368799,1.40781761,209.38,209.32,0.67]
[1759134369098,0.68,209.41,209.34,16.71921276]
[1759134369099,1.40781761,209.39,209.34,16.71921276]
[1759134369305,1.40781761,209.39,209.35,0.67]
[1759134369603,1.40781761,209.39,209.36,37.53]
[1759134370177,26.0,209.41,209.36,37.53]
[1759134370382,2.59372644,209.4,209.36,37.53]
[1759134371500,2.59372644,209.4,209.31,23.88775876]
[1759134371501,2.39372644,209.38,209.37,36.86]
[1759134371701,3.07372644,209.38,209.31,4.77760259]
[1759134371886,4.97558438,209.4,209.31,4.77760259]
[1759134371887,0.68,209.37,209.32,36.86]
[1759134372092,2.39372644,209.35,209.32,36.86]
[1759134372985,2.39372644,209.35,209.32,37.54]
[1759134373383,2.39372644,209.35,209.32,41.6372861]
[1759134373583,2.39372644,209.35,209.32,42.3172861]
[1759134374187,2.39372644,209.35,209.32,41.6372861]
[1759134374388,2.39372644,209.35,209.33,36.86]
[1759134374906,2.39372644,209.35,209.34,36.86]
[1759134375300,2.39372644,209.35,209.31,0.68]
[1759134375494,2.39372644,209.35,209.32,36.84]
[1759134375801,2.39372644,209.35,209.32,37.52]
[1759134377188,2.39372644,209.35,209.33,4.77714613]
[1759134378485,2.39372644,209.35,209.32,36.84]
[1759134378883,2.39372644,209.35,209.32,41.61725851]
[1759134379997,2.39372644,209.33,209.32,41.61725851]
[1759134380401,2.39372644,209.33,209.32,42.29725851]
[1759134380598,0.69,209.38,209.32,42.29725851]
[1759134380797,2.39372644,209.34,209.32,42.29725851]
[1759134381493,2.39372644,209.34,209.32,41.61725851]
[1759134382311,2.39372644,209.34,209.32,42.29725851]
[1759134382690,2.39372644,209.34,209.32,41.61725851]
[1759134383608,2.39372644,209.34,209.32,42.29725851]
[1759134384109,2.39372644,209.34,209.33,36.8]
[1759134385810,2.39372644,209.34,209.33,41.57714613]
[1759134386203,26.0,209.37,209.33,41.57714613]
[1759134386403,2.39372644,209.35,209.34,0.68]
[1759134386911,26.0,209.37,209.34,0.68]
[1759134387095,26.0,209.37,209.35,36.8]
[1759134387289,26.0,209.37,209.36,0.68]
[1759134387484,26.0,209.37,209.36,37.52]
[1759134387890,26.0,209.37,209.36,42.29646159]
[1759134388202,26.0,209.37,209.36,37.52]
[1759134388607,2.39372644,209.38,209.36,42.29646159]
[1759134388813,2.39372644,209.38,209.36,37.52]
[1759134388814,28.39372644,209.38,209.36,37.52]
[1759134389306,28.39372644,209.38,209.36,36.84]
[1759134389503,28.39372644,209.38,209.36,37.52]
[1759134390215,28.39372644,209.38,209.36,42.29639574]
[1759134392005,28.39372644,209.38,209.28,40.61544341]
[1759134392194,28.39372644,209.38,209.29,37.5]
[1759134392396,26.0,209.37,209.29,36.82]
[1759134392610,28.39372644,209.36,209.3,0.68]
[1759134392915,28.39372644,209.36,209.31,36.82]
[1759134393212,28.39372644,209.36,209.32,0.68]
[1759134393397,2.39372644,209.36,209.33,0.68]
[1759134393597,2.39372644,209.36,209.33,37.5]
[1759134393799,28.39372644,209.36,209.33,37.5]
[1759134394113,2.39372644,209.34,209.31,0.68]
[1759134394409,2.39372644,209.34,209.32,36.8]
[1759134394632,2.39372644,209.34,209.33,0.68]
[1759134394912,26.0,209.36,209.34,4.77691793]
[1759134395093,2.39372644,209.35,209.34,4.77691793]
[1759134395414,2.39372644,209.35,209.34,41.57691793]
[1759134396612,2.39372644,209.35,209.34,4.77691793]
[1759134396810,2.39372644,209.35,209.34,41.57691793]
[1759134397207,28.39372644,209.37,209.34,5.45691793]
[1759134397422,28.39372644,209.37,209.35,0.68]
[1759134397921,28.39372644,209.37,209.36,36.8]
[1759134398611,28.39372644,209.37,209.36,42.25646159]
[1759134400007,28.39372644,209.37,209.36,41.57646159]
[1759134400318,28.39372644,209.37,209.36,36.8]
[1759134400500,28.39372644,209.37,209.36,0.68]
[1759134400704,2.59372644,209.4,209.36,37.46]
[1759134400893,0.2,209.4,209.37,0.68]
[1759134401096,0.2,209.4,209.38,36.82]
[1759134401296,0.2,209.4,209.39,36.82]
[1759134402101,0.2,209.4,209.39,4.77577725]
[1759134402303,0.2,209.4,209.39,41.59577725]
[1759134404019,0.2,209.4,209.36,0.68]
[1759134404224,0.2,209.4,209.37,36.8]
[1759134404518,2.39372644,209.39,209.36,5.45646159]
[1759134404703,2.39372644,209.39,209.37,36.8]
[1759134406019,2.39372644,209.39,209.37,41.57613356]
[1759134407226,2.39372644,209.39,209.37,42.25613356]
[1759134408317,0.2,209.4,209.37,41.57613356]
[1759134408523,2.39372644,209.39,209.38,0.68]
[1759134408817,0.2,209.4,209.38,37.48]
[1759134408993,0.2,209.4,209.39,0.68]
[1759134409613,0.2,209.4,209.39,37.48]
[1759134409922,0.2,209.4,209.39,0.68]
[1759134410220,0.2,209.4,209.39,37.48]
[1759134410403,0.2,209.4,209.39,4.77577725]
[1759134410601,2.59372644,209.4,209.39,36.78]
[1759134412222,2.59372644,209.4,209.34,27.01438835]
[1759134412424,2.39372644,209.38,209.35,37.49]
[1759134412609,2.39372644,209.38,209.36,0.71]
[1759134412817,2.39372644,209.38,209.37,0.71]
[1759134413525,2.59372644,209.4,209.37,37.49]
[1759134413727,2.59372644,209.4,209.37,36.78]
[1759134414038,2.59372644,209.4,209.38,0.71]
[1759134414829,2.59372644,209.4,209.38,5.48589181]
[1759134417313,2.59372644,209.4,209.39,36.78]
[1759134418934,2.59372644,209.4,209.38,4.77589181]
[1759134419236,2.59372644,209.4,209.39,36.78]
[1759134421040,3.26372644,209.4,209.33,26.30756035]
[1759134421227,2.39372644,209.36,209.33,0.71]
[1759134421414,2.39372644,209.34,209.31,0.71]
[1759134421617,2.39372644,209.34,209.32,37.49]
[1759134422524,2.39372644,209.34,209.32,42.26728889]
[1759134423619,2.39372644,209.34,209.3,0.71]
[1759134423819,2.39372644,209.31,209.3,5.48781355]
[1759134424028,2.39372644,209.31,209.3,42.26781355]
[1759134427139,2.39372644,209.32,209.3,42.26781355]
[1759134427432,26.0,209.36,209.31,0.71]
[1759134427639,26.0,209.36,209.32,36.78]
[1759134427831,26.0,209.36,209.33,0.71]
[1759134428017,26.0,209.36,209.34,36.8]